[Event "Late Titled Tuesday Blitz February 8 2022"]
[White "Domingo Nunez, Alejandro"]
[Black "Lenderman, Aleksandr"]
[WhiteFideId "22245561"]
[BlackFideId "2021285"]
[WhiteElo "2215"]
[BlackElo "2651"]
[Result "0-1"]
[Round "04"]
[TimeControl "180+1"]
[Date "2022.02.08"]
[WhiteClock "0:00:06"]
[BlackClock "0:00:13"]

1. Nf3 {[%clk 0:03:00]}  Nf6 {[%clk 0:02:50]} 2. g3 {[%clk 0:03:00]}  b5 {[%clk 0:02:50]} 3. Bg2 {[%clk 0:02:59]}  Bb7 {[%clk 0:02:50]} 4. O-O {[%clk 0:03:00]}  e6 {[%clk 0:02:50]} 5. d4 {[%clk 0:02:55]}  c5 {[%clk 0:02:48]} 6. a4 {[%clk 0:02:51]}  b4 {[%clk 0:02:47]} 7. Bg5 {[%clk 0:02:25]}  cxd4 {[%clk 0:02:46]} 8. Nxd4 {[%clk 0:02:26]}  Bxg2 {[%clk 0:02:45]} 9. Kxg2 {[%clk 0:02:27]}  Be7 {[%clk 0:02:44]} 10. Nb3 {[%clk 0:02:22]}  O-O {[%clk 0:02:43]} 11. N1d2 {[%clk 0:02:20]}  Nc6 {[%clk 0:02:42]} 12. e4 {[%clk 0:02:16]}  d5 {[%clk 0:02:42]} 13. Qe2 {[%clk 0:02:13]}  Rc8 {[%clk 0:02:32]} 14. Rfd1 {[%clk 0:02:05]}  Qc7 {[%clk 0:02:31]} 15. Rac1 {[%clk 0:01:50]}  Rfd8 {[%clk 0:02:29]} 16. h4 {[%clk 0:01:45]}  h6 {[%clk 0:02:28]} 17. Bf4 {[%clk 0:01:43]}  e5 {[%clk 0:02:26]} 18. exd5 {[%clk 0:01:42]}  Nxd5 {[%clk 0:02:24]} 19. Be3 {[%clk 0:01:43]}  Nxe3+ {[%clk 0:01:52]} 20. Qxe3 {[%clk 0:01:43]}  Nd4 {[%clk 0:01:52]} 21. Nf3 {[%clk 0:01:33]}  Nxf3 {[%clk 0:01:43]} 22. Qxf3 {[%clk 0:01:32]}  Bf8 {[%clk 0:01:36]} 23. a5 {[%clk 0:00:59]}  Qc4 {[%clk 0:01:25]} 24. Qb7 {[%clk 0:00:48]}  Rxd1 {[%clk 0:01:21]} 25. Rxd1 {[%clk 0:00:48]}  Rc7 {[%clk 0:01:20]} 26. Qa8 {[%clk 0:00:46]}  Rc8 {[%clk 0:01:04]} 27. Qb7 {[%clk 0:00:45]}  Qc6+ {[%clk 0:00:54]} 28. Qxc6 {[%clk 0:00:45]}  Rxc6 {[%clk 0:00:55]} 29. Rd2 {[%clk 0:00:38]}  Bd6 {[%clk 0:00:52]} 30. Kf1 {[%clk 0:00:32]}  f5 {[%clk 0:00:52]} 31. Ke2 {[%clk 0:00:32]}  Kf7 {[%clk 0:00:53]} 32. Kd1 {[%clk 0:00:33]}  Ke6 {[%clk 0:00:53]} 33. Kc1 {[%clk 0:00:24]}  Rc4 {[%clk 0:00:50]} 34. Kd1 {[%clk 0:00:22]}  g5 {[%clk 0:00:50]} 35. hxg5 {[%clk 0:00:20]}  hxg5 {[%clk 0:00:51]} 36. Nc1 {[%clk 0:00:20]}  g4 {[%clk 0:00:49]} 37. Nb3 {[%clk 0:00:19]}  Bc7 {[%clk 0:00:45]} 38. Ke2 {[%clk 0:00:19]}  Bd6 {[%clk 0:00:39]} 39. Kd3 {[%clk 0:00:19]}  Rc8 {[%clk 0:00:38]} 40. Ke2 {[%clk 0:00:19]}  Rh8 {[%clk 0:00:38]} 41. Kd3 {[%clk 0:00:19]}  Rh1 {[%clk 0:00:37]} 42. Kc4 {[%clk 0:00:19]}  Rb1 {[%clk 0:00:31]} 43. Kb5 {[%clk 0:00:18]}  Rxb2 {[%clk 0:00:29]} 44. Kc6 {[%clk 0:00:19]}  Be7 {[%clk 0:00:28]} 45. Kb7 {[%clk 0:00:18]}  Bg5 {[%clk 0:00:26]} 46. Re2 {[%clk 0:00:17]}  Kd5 {[%clk 0:00:24]} 47. Kxa7 {[%clk 0:00:17]}  f4 {[%clk 0:00:25]} 48. gxf4 {[%clk 0:00:16]}  exf4 {[%clk 0:00:26]} 49. Kb7 {[%clk 0:00:15]}  f3 {[%clk 0:00:26]} 50. Re8 {[%clk 0:00:14]}  Rxc2 {[%clk 0:00:25]} 51. a6 {[%clk 0:00:15]}  Ra2 {[%clk 0:00:24]} 52. a7 {[%clk 0:00:15]}  Kc4 {[%clk 0:00:25]} 53. Rg8 {[%clk 0:00:05]}  Bf6 {[%clk 0:00:16]} 54. Nd2+ {[%clk 0:00:05]}  Kd3 {[%clk 0:00:16]} 55. Nf1 {[%clk 0:00:03]}  b3 {[%clk 0:00:14]} 56. a8=Q {[%clk 0:00:03]}  Rxa8 {[%clk 0:00:13]} 57. Kxa8 {[%clk 0:00:04]}  b2 {[%clk 0:00:11]} 58. Rb8 {[%clk 0:00:04]}  Ke2 {[%clk 0:00:11]} 59. Ne3 {[%clk 0:00:03]}  g3 {[%clk 0:00:12]} 60. Ng4 {[%clk 0:00:02]}  g2 {[%clk 0:00:11]} 61. Nxf6 {[%clk 0:00:01]}  g1=Q {[%clk 0:00:07]} 62. Rxb2+ {[%clk 0:00:02]}  Kd3 {[%clk 0:00:06]} 63. Nd5 {[%clk 0:00:02]}  Qg8+ {[%clk 0:00:04]} 64. Ka7 {[%clk 0:00:03]}  Qxd5 {[%clk 0:00:04]} 65. Ka6 {[%clk 0:00:03]}  Qc4+ {[%clk 0:00:04]} 66. Ka5 {[%clk 0:00:04]}  Qc3+ {[%clk 0:00:05]} 67. Rb4 {[%clk 0:00:04]}  Ke2 {[%clk 0:00:05]} 68. Kb5 {[%clk 0:00:04]}  Qxb4+ {[%clk 0:00:05]} 69. Kxb4 {[%clk 0:00:02]}  Kxf2 {[%clk 0:00:06]} 70. Kc3 {[%clk 0:00:02]}  Ke2 {[%clk 0:00:07]} 71. Kd4 {[%clk 0:00:02]}  f2 {[%clk 0:00:08]} 72. Ke4 {[%clk 0:00:03]}  f1=Q {[%clk 0:00:09]} 73. Kd5 {[%clk 0:00:04]}  Qf3+ {[%clk 0:00:10]} 74. Kc4 {[%clk 0:00:05]}  Qe3 {[%clk 0:00:11]} 75. Kd5 {[%clk 0:00:05]}  Qd3+ {[%clk 0:00:12]} 76. Kc5 {[%clk 0:00:06]}  Ke3 {[%clk 0:00:13]} 0-1


[Site "https://www.chess.com"]

[Event "Late Titled Tuesday Blitz February 8 2022"]
[White "Erdogdu, Mert"]
[Black "Sjugirov, Sanan"]
[WhiteFideId "6301495"]
[BlackFideId "4189302"]
[WhiteElo "2485"]
[BlackElo "2602"]
[Result "0-1"]
[Round "04"]
[TimeControl "180+1"]
[Date "2022.02.08"]
[WhiteClock "0:00:09"]
[BlackClock "0:00:06"]

1. e4 {[%clk 0:03:00]}  e5 {[%clk 0:02:58]} 2. f4 {[%clk 0:03:01]}  exf4 {[%clk 0:02:56]} 3. Nf3 {[%clk 0:03:01]}  g5 {[%clk 0:02:46]} 4. Bc4 {[%clk 0:03:00]}  d5 {[%clk 0:02:15]} 5. Bxd5 {[%clk 0:02:53]}  g4 {[%clk 0:02:12]} 6. O-O {[%clk 0:02:48]}  gxf3 {[%clk 0:02:07]} 7. Qxf3 {[%clk 0:02:47]}  Qf6 {[%clk 0:01:24]} 8. e5 {[%clk 0:02:07]}  Qg6 {[%clk 0:00:54]} 9. Bxb7 {[%clk 0:01:41]}  Qb6+ {[%clk 0:00:53]} 10. d4 {[%clk 0:01:35]}  Bxb7 {[%clk 0:00:49]} 11. Qxf4 {[%clk 0:01:35]}  Qg6 {[%clk 0:00:46]} 12. Rf2 {[%clk 0:01:35]}  Bh6 {[%clk 0:00:45]} 13. Qh4 {[%clk 0:00:49]}  Bxc1 {[%clk 0:00:43]} 14. Nc3 {[%clk 0:00:49]}  Bxb2 {[%clk 0:00:40]} 15. Nb5 {[%clk 0:00:49]}  Bxa1 {[%clk 0:00:24]} 16. Nxc7+ {[%clk 0:00:48]}  Kd7 {[%clk 0:00:24]} 17. Nb5 {[%clk 0:00:34]}  Ne7 {[%clk 0:00:18]} 18. Nd6 {[%clk 0:00:28]}  Bd5 {[%clk 0:00:15]} 19. c4 {[%clk 0:00:27]}  Be6 {[%clk 0:00:08]} 20. d5 {[%clk 0:00:27]}  Bxe5 {[%clk 0:00:07]} 21. dxe6+ {[%clk 0:00:24]}  fxe6 {[%clk 0:00:08]} 22. Ne4 {[%clk 0:00:24]}  Nbc6 {[%clk 0:00:07]} 23. g3 {[%clk 0:00:19]}  Bd4 {[%clk 0:00:07]} 24. Kg2 {[%clk 0:00:13]}  Bxf2 {[%clk 0:00:06]} 25. Kxf2 {[%clk 0:00:11]}  Qf5+ {[%clk 0:00:06]} 26. Kg2 {[%clk 0:00:11]}  Rab8 {[%clk 0:00:06]} 27. Nf6+ {[%clk 0:00:10]}  Kc7 {[%clk 0:00:07]} 28. Qd4 {[%clk 0:00:09]}  Nxd4 {[%clk 0:00:06]} 0-1


[Site "https://www.chess.com"]

[Event "Late Titled Tuesday Blitz February 8 2022"]
[White "Ezat, Mohamed"]
[Black "Kiolbasa, Oliwia"]
[WhiteFideId "10600906"]
[BlackFideId "1154613"]
[WhiteElo "2386"]
[BlackElo "2190"]
[Result "1-0"]
[Round "04"]
[TimeControl "180+1"]
[Date "2022.02.09"]
[WhiteClock "0:01:19"]
[BlackClock "0:00:18"]

1. d4 {[%clk 0:03:00]}  d5 {[%clk 0:02:55]} 2. c4 {[%clk 0:03:01]}  e6 {[%clk 0:02:53]} 3. Nc3 {[%clk 0:03:01]}  Nf6 {[%clk 0:02:53]} 4. cxd5 {[%clk 0:03:02]}  exd5 {[%clk 0:02:53]} 5. Bg5 {[%clk 0:03:02]}  Nbd7 {[%clk 0:02:50]} 6. e3 {[%clk 0:03:01]}  c6 {[%clk 0:02:40]} 7. Qc2 {[%clk 0:02:59]}  Be7 {[%clk 0:02:37]} 8. Bd3 {[%clk 0:02:59]}  Nh5 {[%clk 0:02:37]} 9. Bxe7 {[%clk 0:02:57]}  Qxe7 {[%clk 0:02:38]} 10. Nge2 {[%clk 0:02:57]}  g6 {[%clk 0:02:35]} 11. O-O {[%clk 0:02:56]}  Ndf6 {[%clk 0:02:34]} 12. Rab1 {[%clk 0:02:52]}  O-O {[%clk 0:02:30]} 13. b4 {[%clk 0:02:51]}  a6 {[%clk 0:02:27]} 14. Na4 {[%clk 0:02:46]}  Be6 {[%clk 0:02:18]} 15. Nc5 {[%clk 0:02:42]}  Ng7 {[%clk 0:02:05]} 16. a4 {[%clk 0:02:40]}  Bf5 {[%clk 0:02:03]} 17. b5 {[%clk 0:02:40]}  axb5 {[%clk 0:01:27]} 18. axb5 {[%clk 0:02:39]}  b6 {[%clk 0:01:26]} 19. Na6 {[%clk 0:02:31]}  cxb5 {[%clk 0:01:22]} 20. Nb4 {[%clk 0:02:28]}  Rfc8 {[%clk 0:01:17]} 21. Qd2 {[%clk 0:02:21]}  Ra4 {[%clk 0:01:04]} 22. Bxf5 {[%clk 0:02:12]}  Nxf5 {[%clk 0:00:55]} 23. Nd3 {[%clk 0:02:07]}  Ne4 {[%clk 0:00:47]} 24. Qb2 {[%clk 0:02:05]}  Nfd6 {[%clk 0:00:47]} 25. Nef4 {[%clk 0:01:58]}  Qg5 {[%clk 0:00:37]} 26. Ne5 {[%clk 0:01:49]}  h5 {[%clk 0:00:24]} 27. Nxd5 {[%clk 0:01:45]}  Rac4 {[%clk 0:00:22]} 28. f4 {[%clk 0:01:20]}  Qf5 {[%clk 0:00:18]} 29. Ne7+ {[%clk 0:01:19]} 1-0


[Site "https://www.chess.com"]

[Event "Late Titled Tuesday Blitz February 8 2022"]
[White "Garcia Martin, Marta"]
[Black "Stankovic, Ivan G"]
[WhiteFideId "32084030"]
[BlackFideId "902837"]
[WhiteElo "2102"]
[BlackElo "2195"]
[Result "1-0"]
[Round "04"]
[TimeControl "180+1"]
[Date "2022.02.09"]
[WhiteClock "0:00:27"]
[BlackClock "0:00:05"]

1. e4 {[%clk 0:03:00]}  c5 {[%clk 0:02:59]} 2. d4 {[%clk 0:02:58]}  cxd4 {[%clk 0:02:59]} 3. c3 {[%clk 0:02:58]}  d3 {[%clk 0:02:59]} 4. Bxd3 {[%clk 0:02:58]}  Nc6 {[%clk 0:03:00]} 5. Nf3 {[%clk 0:02:58]}  g6 {[%clk 0:03:00]} 6. c4 {[%clk 0:02:59]}  Bg7 {[%clk 0:03:00]} 7. O-O {[%clk 0:02:59]}  d6 {[%clk 0:03:01]} 8. Nc3 {[%clk 0:02:59]}  Nf6 {[%clk 0:03:02]} 9. h3 {[%clk 0:02:59]}  O-O {[%clk 0:03:02]} 10. Rb1 {[%clk 0:02:59]}  a5 {[%clk 0:03:03]} 11. b3 {[%clk 0:02:59]}  Ng4 {[%clk 0:02:54]} 12. Bb2 {[%clk 0:02:56]}  Nge5 {[%clk 0:02:53]} 13. Nxe5 {[%clk 0:02:57]}  Nxe5 {[%clk 0:02:54]} 14. Be2 {[%clk 0:02:57]}  Bd7 {[%clk 0:02:48]} 15. Nd5 {[%clk 0:02:49]}  a4 {[%clk 0:02:37]} 16. Bd4 {[%clk 0:02:39]}  axb3 {[%clk 0:02:32]} 17. axb3 {[%clk 0:02:40]}  Bc6 {[%clk 0:02:20]} 18. Bb6 {[%clk 0:02:29]}  Qe8 {[%clk 0:01:49]} 19. Nc7 {[%clk 0:02:27]}  Qc8 {[%clk 0:01:45]} 20. Nxa8 {[%clk 0:02:24]}  Qxa8 {[%clk 0:01:46]} 21. f3 {[%clk 0:02:15]}  Qa2 {[%clk 0:01:31]} 22. Bd4 {[%clk 0:02:10]}  Qa3 {[%clk 0:01:10]} 23. b4 {[%clk 0:01:56]}  Ba4 {[%clk 0:01:08]} 24. Qd2 {[%clk 0:01:55]}  Rc8 {[%clk 0:01:00]} 25. Rfc1 {[%clk 0:01:52]}  Nc6 {[%clk 0:00:37]} 26. Bxg7 {[%clk 0:01:46]}  Kxg7 {[%clk 0:00:37]} 27. b5 {[%clk 0:01:38]}  Ne5 {[%clk 0:00:35]} 28. f4 {[%clk 0:01:36]}  Qc5+ {[%clk 0:00:26]} 29. Kh2 {[%clk 0:01:33]}  Nd7 {[%clk 0:00:26]} 30. Bg4 {[%clk 0:01:08]}  e6 {[%clk 0:00:24]} 31. Qc3+ {[%clk 0:01:04]}  Kg8 {[%clk 0:00:20]} 32. f5 {[%clk 0:01:03]}  Ne5 {[%clk 0:00:16]} 33. fxe6 {[%clk 0:01:00]}  Nxg4+ {[%clk 0:00:16]} 34. hxg4 {[%clk 0:01:01]}  fxe6 {[%clk 0:00:17]} 35. Qf6 {[%clk 0:00:57]}  Re8 {[%clk 0:00:07]} 36. Rf1 {[%clk 0:00:56]}  Qc7 {[%clk 0:00:07]} 37. Rbc1 {[%clk 0:00:35]}  d5+ {[%clk 0:00:07]} 38. Kg1 {[%clk 0:00:31]}  dxc4 {[%clk 0:00:07]} 39. Rxc4 {[%clk 0:00:29]}  Qd7 {[%clk 0:00:05]} 40. Rxa4 {[%clk 0:00:27]} 1-0


[Site "https://www.chess.com"]

[Event "Late Titled Tuesday Blitz February 8 2022"]
[White "Gatterer, Florian"]
[Black "Aradhya, Garg"]
[WhiteFideId "811688"]
[BlackFideId "25006746"]
[WhiteElo "2218"]
[BlackElo "2169"]
[Result "0-1"]
[Round "04"]
[TimeControl "180+1"]
[Date "2022.02.09"]
[WhiteClock "0:00:15"]
[BlackClock "0:00:15"]

1. d4 {[%clk 0:03:00]}  d5 {[%clk 0:02:55]} 2. Bf4 {[%clk 0:03:00]}  c5 {[%clk 0:02:54]} 3. e3 {[%clk 0:03:01]}  Nc6 {[%clk 0:02:54]} 4. Nf3 {[%clk 0:02:59]}  Nf6 {[%clk 0:02:54]} 5. Nbd2 {[%clk 0:02:58]}  Nh5 {[%clk 0:02:54]} 6. dxc5 {[%clk 0:02:56]}  Nxf4 {[%clk 0:02:52]} 7. exf4 {[%clk 0:02:56]}  g6 {[%clk 0:02:53]} 8. Be2 {[%clk 0:02:52]}  Bg7 {[%clk 0:02:52]} 9. c3 {[%clk 0:02:52]}  d4 {[%clk 0:02:52]} 10. Ne4 {[%clk 0:02:41]}  O-O {[%clk 0:02:51]} 11. cxd4 {[%clk 0:02:40]}  Nxd4 {[%clk 0:02:51]} 12. Nxd4 {[%clk 0:02:40]}  Qxd4 {[%clk 0:02:50]} 13. Qxd4 {[%clk 0:02:35]}  Bxd4 {[%clk 0:02:51]} 14. Nc3 {[%clk 0:02:32]}  Bxc5 {[%clk 0:02:37]} 15. Bf3 {[%clk 0:02:30]}  Rb8 {[%clk 0:02:34]} 16. O-O {[%clk 0:02:27]}  Bf5 {[%clk 0:02:30]} 17. Rfd1 {[%clk 0:02:17]}  Rfc8 {[%clk 0:02:28]} 18. g4 {[%clk 0:02:03]}  Be6 {[%clk 0:02:23]} 19. Ne4 {[%clk 0:01:46]}  Bb6 {[%clk 0:02:14]} 20. b3 {[%clk 0:01:36]}  Rc2 {[%clk 0:01:46]} 21. Rd2 {[%clk 0:01:30]}  Rxd2 {[%clk 0:01:46]} 22. Nxd2 {[%clk 0:01:30]}  Bc7 {[%clk 0:01:47]} 23. f5 {[%clk 0:01:12]}  gxf5 {[%clk 0:01:48]} 24. gxf5 {[%clk 0:01:12]}  Bxf5 {[%clk 0:01:49]} 25. Re1 {[%clk 0:01:07]}  e6 {[%clk 0:01:40]} 26. Ne4 {[%clk 0:01:03]}  Kg7 {[%clk 0:01:38]} 27. Rd1 {[%clk 0:00:52]}  Kf8 {[%clk 0:01:28]} 28. Ng3 {[%clk 0:00:48]}  Bxg3 {[%clk 0:01:24]} 29. hxg3 {[%clk 0:00:45]}  Ke7 {[%clk 0:01:24]} 30. Rc1 {[%clk 0:00:43]}  Kd6 {[%clk 0:01:17]} 31. Rd1+ {[%clk 0:00:39]}  Kc7 {[%clk 0:01:18]} 32. Rc1+ {[%clk 0:00:28]}  Kb6 {[%clk 0:01:18]} 33. Rc4 {[%clk 0:00:28]}  a5 {[%clk 0:01:15]} 34. g4 {[%clk 0:00:25]}  Bg6 {[%clk 0:01:14]} 35. Rd4 {[%clk 0:00:24]}  Kc7 {[%clk 0:01:10]} 36. a3 {[%clk 0:00:23]}  f5 {[%clk 0:00:52]} 37. b4 {[%clk 0:00:21]}  axb4 {[%clk 0:00:51]} 38. axb4 {[%clk 0:00:21]}  b5 {[%clk 0:00:45]} 39. gxf5 {[%clk 0:00:20]}  Bxf5 {[%clk 0:00:45]} 40. Kh2 {[%clk 0:00:20]}  Rb6 {[%clk 0:00:38]} 41. Be2 {[%clk 0:00:20]}  Bg6 {[%clk 0:00:35]} 42. Rd2 {[%clk 0:00:17]}  Be4 {[%clk 0:00:21]} 43. Ra2 {[%clk 0:00:17]}  Bc6 {[%clk 0:00:20]} 44. Ra3 {[%clk 0:00:16]}  Rb8 {[%clk 0:00:19]} 45. Rh3 {[%clk 0:00:16]}  Be4 {[%clk 0:00:19]} 46. f3 {[%clk 0:00:15]}  Bf5 {[%clk 0:00:19]} 47. Kg3 {[%clk 0:00:14]}  Bxh3 {[%clk 0:00:17]} 48. Kxh3 {[%clk 0:00:14]}  Kb6 {[%clk 0:00:18]} 49. Kg3 {[%clk 0:00:13]}  Rd8 {[%clk 0:00:18]} 50. Kf4 {[%clk 0:00:14]}  Rd4+ {[%clk 0:00:18]} 51. Ke5 {[%clk 0:00:15]}  Rxb4 {[%clk 0:00:18]} 52. Kxe6 {[%clk 0:00:15]}  h5 {[%clk 0:00:17]} 53. Ke5 {[%clk 0:00:14]}  h4 {[%clk 0:00:18]} 54. f4 {[%clk 0:00:15]}  h3 {[%clk 0:00:18]} 55. Bf3 {[%clk 0:00:15]}  h2 {[%clk 0:00:18]} 56. f5 {[%clk 0:00:15]}  Rb1 {[%clk 0:00:18]} 57. f6 {[%clk 0:00:15]}  h1=Q {[%clk 0:00:17]} 58. f7 {[%clk 0:00:16]}  Qxf3 {[%clk 0:00:16]} 59. f8=Q {[%clk 0:00:15]}  Qxf8 {[%clk 0:00:15]} 0-1


[Site "https://www.chess.com"]

[Event "Late Titled Tuesday Blitz February 8 2022"]
[White "Gomez Ledo, Roberto Carlos"]
[Black "Dobre, Claudiu-Cristian"]
[WhiteFideId "3507076"]
[BlackFideId "1211854"]
[WhiteElo "2379"]
[BlackElo "2207"]
[Result "1/2-1/2"]
[Round "04"]
[TimeControl "180+1"]
[Date "2022.02.09"]
[WhiteClock "0:00:06"]
[BlackClock "0:00:08"]

1. d4 {[%clk 0:03:00]}  d5 {[%clk 0:02:59]} 2. Bf4 {[%clk 0:03:00]}  Nf6 {[%clk 0:02:53]} 3. e3 {[%clk 0:02:59]}  e6 {[%clk 0:02:52]} 4. Nd2 {[%clk 0:02:58]}  c5 {[%clk 0:02:52]} 5. c3 {[%clk 0:02:58]}  Nc6 {[%clk 0:02:52]} 6. Ngf3 {[%clk 0:02:56]}  Bd6 {[%clk 0:02:48]} 7. Bg3 {[%clk 0:02:55]}  O-O {[%clk 0:02:46]} 8. Bd3 {[%clk 0:02:55]}  h6 {[%clk 0:02:36]} 9. Qe2 {[%clk 0:02:42]}  Re8 {[%clk 0:02:36]} 10. Ne5 {[%clk 0:02:41]}  Ne7 {[%clk 0:01:37]} 11. f4 {[%clk 0:02:38]}  Nf5 {[%clk 0:01:34]} 12. Bf2 {[%clk 0:02:35]}  Bf8 {[%clk 0:01:33]} 13. g4 {[%clk 0:02:21]}  Nd6 {[%clk 0:01:33]} 14. Qf3 {[%clk 0:02:22]}  b6 {[%clk 0:01:20]} 15. g5 {[%clk 0:02:17]}  Nfe4 {[%clk 0:01:17]} 16. Nxe4 {[%clk 0:02:12]}  dxe4 {[%clk 0:01:16]} 17. Bxe4 {[%clk 0:02:12]}  Nxe4 {[%clk 0:01:13]} 18. Qxe4 {[%clk 0:02:13]}  Qd5 {[%clk 0:01:10]} 19. Qxd5 {[%clk 0:02:06]}  exd5 {[%clk 0:01:10]} 20. Rg1 {[%clk 0:01:32]}  hxg5 {[%clk 0:01:09]} 21. fxg5 {[%clk 0:01:33]}  Bd6 {[%clk 0:01:04]} 22. Bg3 {[%clk 0:01:27]}  g6 {[%clk 0:00:47]} 23. Kd2 {[%clk 0:01:26]}  Bf5 {[%clk 0:00:46]} 24. Nxf7 {[%clk 0:01:11]}  Kxf7 {[%clk 0:00:41]} 25. Bxd6 {[%clk 0:01:10]}  cxd4 {[%clk 0:00:39]} 26. exd4 {[%clk 0:00:50]}  Re4 {[%clk 0:00:39]} 27. Rae1 {[%clk 0:00:35]}  Rae8 {[%clk 0:00:37]} 28. Bg3 {[%clk 0:00:30]}  Rxe1 {[%clk 0:00:31]} 29. Rxe1 {[%clk 0:00:30]}  Rxe1 {[%clk 0:00:31]} 30. Kxe1 {[%clk 0:00:27]}  b5 {[%clk 0:00:31]} 31. Kd2 {[%clk 0:00:27]}  Bb1 {[%clk 0:00:29]} 32. a3 {[%clk 0:00:26]}  Ke6 {[%clk 0:00:24]} 33. b3 {[%clk 0:00:20]}  Bf5 {[%clk 0:00:20]} 34. Be5 {[%clk 0:00:16]}  Bg4 {[%clk 0:00:20]} 35. h4 {[%clk 0:00:15]}  Bf3 {[%clk 0:00:19]} 36. Ke3 {[%clk 0:00:14]}  Bd1 {[%clk 0:00:19]} 37. b4 {[%clk 0:00:13]}  Kf5 {[%clk 0:00:18]} 38. Kd2 {[%clk 0:00:12]}  Bh5 {[%clk 0:00:17]} 39. Bf6 {[%clk 0:00:11]}  a6 {[%clk 0:00:18]} 40. Ke3 {[%clk 0:00:11]}  Bg4 {[%clk 0:00:18]} 41. Be7 {[%clk 0:00:10]}  Bh5 {[%clk 0:00:18]} 42. Bf6 {[%clk 0:00:10]}  Bg4 {[%clk 0:00:19]} 43. c4 {[%clk 0:00:09]}  dxc4 {[%clk 0:00:13]} 44. d5 {[%clk 0:00:08]}  Bh3 {[%clk 0:00:08]} 45. Kd4 {[%clk 0:00:07]}  Bg2 {[%clk 0:00:08]} 46. d6 {[%clk 0:00:05]}  Ke6 {[%clk 0:00:07]} 47. Be7 {[%clk 0:00:05]}  Bf3 {[%clk 0:00:07]} 48. Kc3 {[%clk 0:00:05]}  Kd7 {[%clk 0:00:07]} 49. Kd4 {[%clk 0:00:05]}  Bg4 {[%clk 0:00:06]} 50. Kc3 {[%clk 0:00:05]}  Bf3 {[%clk 0:00:07]} 51. Kd4 {[%clk 0:00:05]}  Bg4 {[%clk 0:00:07]} 52. Ke3 {[%clk 0:00:05]}  Bh5 {[%clk 0:00:07]} 53. Kd2 {[%clk 0:00:05]}  Bg4 {[%clk 0:00:07]} 54. Kc3 {[%clk 0:00:06]}  Bh5 {[%clk 0:00:08]} 55. Kd4 {[%clk 0:00:06]}  Bg4 {[%clk 0:00:08]} 1/2-1/2


[Site "https://www.chess.com"]

[Event "Late Titled Tuesday Blitz February 8 2022"]
[White "Goryachkina, Aleksandra"]
[Black "Yang, Qindong"]
[WhiteFideId "4147103"]
[BlackFideId "8603758"]
[WhiteElo "2426"]
[BlackElo "2101"]
[Result "1-0"]
[Round "04"]
[TimeControl "180+1"]
[Date "2022.02.09"]
[WhiteClock "0:00:49"]
[BlackClock "0:00:17"]

1. e4 {[%clk 0:02:59]}  d6 {[%clk 0:02:52]} 2. d4 {[%clk 0:02:58]}  Nf6 {[%clk 0:02:52]} 3. Nc3 {[%clk 0:02:57]}  g6 {[%clk 0:02:52]} 4. f4 {[%clk 0:02:57]}  Bg7 {[%clk 0:02:50]} 5. Nf3 {[%clk 0:02:57]}  O-O {[%clk 0:02:51]} 6. Bd3 {[%clk 0:02:57]}  Nc6 {[%clk 0:02:37]} 7. e5 {[%clk 0:02:56]}  dxe5 {[%clk 0:02:36]} 8. dxe5 {[%clk 0:02:57]}  Nd5 {[%clk 0:02:37]} 9. Nxd5 {[%clk 0:02:57]}  Qxd5 {[%clk 0:02:38]} 10. Qe2 {[%clk 0:02:52]}  Bg4 {[%clk 0:02:31]} 11. Be4 {[%clk 0:02:46]}  Qa5+ {[%clk 0:02:24]} 12. Bd2 {[%clk 0:02:45]}  Qb6 {[%clk 0:02:24]} 13. O-O-O {[%clk 0:02:43]}  Nd4 {[%clk 0:02:20]} 14. Qe3 {[%clk 0:02:13]}  Nxf3 {[%clk 0:01:51]} 15. gxf3 {[%clk 0:02:11]}  Bf5 {[%clk 0:01:40]} 16. Qa3 {[%clk 0:02:03]}  Bxe4 {[%clk 0:01:29]} 17. fxe4 {[%clk 0:02:03]}  Qe6 {[%clk 0:01:14]} 18. h4 {[%clk 0:01:54]}  Rfd8 {[%clk 0:01:05]} 19. h5 {[%clk 0:01:44]}  c5 {[%clk 0:01:04]} 20. hxg6 {[%clk 0:01:42]}  fxg6 {[%clk 0:00:48]} 21. f5 {[%clk 0:01:12]}  Qxe5 {[%clk 0:00:43]} 22. Qb3+ {[%clk 0:01:11]}  e6 {[%clk 0:00:30]} 23. fxe6 {[%clk 0:00:50]}  c4 {[%clk 0:00:28]} 24. Qxb7 {[%clk 0:00:50]}  Qxe6 {[%clk 0:00:20]} 25. Bc3 {[%clk 0:00:50]}  Rab8 {[%clk 0:00:17]} 26. Qxg7# {[%clk 0:00:49]} 1-0


[Site "https://www.chess.com"]